fUSD/lending_fUSD_20250222
["ID","MTS","AMOUNT","RATE_DAILY","PERIOD"]
[354101542,1740239447766,-500.0,0.00012999,2]
[354101544,1740239447775,-500.0,0.00012999,2]
[354101546,1740239447784,-550.36,0.00012999,2]
[354101548,1740239447793,-500.0,0.00012999,2]
[354101550,1740239447802,-500.0,0.00012999,2]
[354101551,1740239447811,-500.0,0.00012999,2]
[354101554,1740239447823,-500.0,0.00012999,2]
[354101555,1740239447833,-479.03243362,0.00012999,2]
[354101557,1740239447842,-500.0,0.00012999,2]
[354101559,1740239447851,-500.0,0.00012999,2]
[354101561,1740239447862,-500.0,0.00012999,2]
[354101563,1740239447870,-500.14346161,0.00012999,2]
[354101565,1740239447879,-500.0,0.00012999,2]
[354101568,1740239447889,-500.0,0.00012999,2]
[354101570,1740239447899,-500.0,0.00012999,2]
[354101572,1740239447909,-534.79034593,0.00012999,2]
[354101574,1740239447918,-500.0,0.00012999,2]
[354101576,1740239447927,-500.0,0.00012999,2]
[354101578,1740239447937,-500.0,0.00012999,2]
[354101580,1740239447946,-500.0,0.00012999,2]
[354101581,1740239447955,-500.0,0.00012999,2]
[354101583,1740239447964,-500.0,0.00012999,2]
[354101585,1740239447973,-500.0,0.00012999,2]
[354101587,1740239447982,-500.0,0.00012999,2]
[354101589,1740239447991,-500.0,0.00012999,2]
[354101591,1740239448000,-500.0,0.00012999,2]
[354101593,1740239448010,-500.0,0.00012999,2]
[354101609,1740239448163,-500.0,0.00012999,2]
[354101611,1740239448172,-500.0,0.00012999,2]
[354101613,1740239448182,-500.0,0.00012999,2]
[354101615,1740239448192,-500.0,0.00012999,2]
[354101617,1740239448201,-500.0,0.00012999,2]
[354101619,1740239448211,-500.0,0.00012999,2]
[354101621,1740239448221,-500.0,0.00012999,2]
[354101623,1740239448230,-500.0,0.00012999,2]
[354101624,1740239448239,-517.47413487,0.00012999,2]
[354101626,1740239448249,-500.0,0.00012999,2]
[354101628,1740239448258,-500.0,0.00012999,2]
[354101630,1740239448267,-500.0,0.00012999,2]
[354101632,1740239448276,-500.0,0.00012999,2]
[354101634,1740239448285,-500.0,0.00012999,2]
[354101636,1740239448294,-500.0,0.00012999,2]
[354101638,1740239448303,-500.0,0.00012999,2]
[354101640,1740239448313,-500.0,0.00012999,2]
[354101641,1740239448323,-500.0,0.00012999,2]
[354101642,1740239448332,-500.0,0.00012999,2]
[354101643,1740239448341,-500.0,0.00012999,2]
[354101644,1740239448351,-500.0,0.00012999,2]
[354101645,1740239448360,-500.0,0.00012999,2]
[354101646,1740239448370,-500.0,0.00012999,2]
[354101647,1740239448379,-522.1,0.00012999,2]
[354101648,1740239448388,-934.0,0.00013,2]
[354101649,1740239448397,-680085.40877867,0.00013,5]
[354101650,1740239448582,-2240.91721747,0.00013,5]
[354101651,1740239448702,-500.0,0.00012997,2]
[354101652,1740239448711,-3991.58082966,0.00013,5]
[354101653,1740239448725,-3006.21675132,0.00013,5]
[354101654,1740239448736,-1652.76832086,0.00013,5]
[354101656,1740239454742,434.41,8.767e-05,2]
[354101876,1740239805333,550.0,0.0001,2]
[354101877,1740239817422,152.0,8.767e-05,3]
[354101880,1740239855680,152.0,8.767e-05,3]
[354101888,1740239885677,153.0,8.767e-05,3]
[354101895,1740239954513,390.42,9.755e-05,2]
[354101897,1740240011784,234.0,8.767e-05,3]
[354101898,1740240012033,234.0,9.463e-05,3]
[354101900,1740240310924,211.0,8.767e-05,3]
[354101901,1740240311306,211.0,9.463e-05,3]
[354101904,1740240609745,190.0,8.767e-05,3]
[354101905,1740240610057,190.0,9.463e-05,3]
[354101913,1740240631823,-190.0,0.0001016,3]
[354101914,1740240631833,-2602.89999997,0.000105,5]
[354101915,1740240631933,-2948.10000003,0.000105,5]
[354101916,1740240631943,-998.045666,0.00010675,2]
[354101917,1740240631952,-150.0,0.00010729,2]
[354101918,1740240631962,-190.0,0.00010856,3]
[354101919,1740240631971,-167.841281,0.00010958,2]
[354101920,1740240631980,-425.871723,0.00010958,2]
[354101921,1740240631990,-162.079268,0.00010958,2]
[354101922,1740240631999,-665.71276693,0.00010958,2]
[354101923,1740240632008,-167.841281,0.00011041,2]
[354101924,1740240632018,-425.871723,0.00011041,2]
[354101925,1740240632027,-167.841281,0.00011123,2]
[354101926,1740240632036,-150.99,0.00011123,2]
[354101927,1740240632045,-425.871723,0.00011123,2]
[354101928,1740240632054,-150.0,0.00011204,2]
[354101929,1740240632063,-167.841281,0.00011205,2]
[354101930,1740240632072,-487.86,0.00011205,2]
[354101931,1740240632081,-6138.29798163,0.00011205,2]
[354101932,1740240632092,-5553.0,0.00011205,2]
[354101933,1740240632103,-4392.69201837,0.00011205,2]
[354101934,1740240632112,-299.99,0.00011205,2]
[354101935,1740240632121,-662.34,0.00011205,2]
[354101936,1740240632130,-2319.57,0.00011205,2]
[354101937,1740240632140,-425.871723,0.00011205,2]
[354101938,1740240632149,-1991.4146693,0.00011284,2]
[354101939,1740240632158,-167.841281,0.00011287,2]
[354101940,1740240632167,-425.871723,0.00011287,2]
[354101941,1740240632176,-288.47,0.00011307,2]
[354101942,1740240632185,-1000.0,0.00011332,2]
[354101943,1740240632194,-165.50506705,0.00011369,2]
[354101944,1740240632205,-2.33621395,0.00011369,2]
[354101945,1740240632214,-425.871723,0.00011369,2]
[354101947,1740240632223,-109.23925962,0.00011432,2]
[354101949,1740240632237,-66.86074038,0.00011432,2]
[354101951,1740240632246,-150.0,0.00011449,2]
[354101953,1740240632255,-57.87464212,0.00011449,2]
[354101955,1740240632266,-97.38535788,0.00011449,2]
[354101957,1740240632276,-155.26,0.00011497,2]
[354101959,1740240632285,-205.37564224,0.00011507,2]
[354101961,1740240632297,-691.49400045,0.00011507,2]
[354101963,1740240632307,-384.4865941,0.00011507,2]
[354101965,1740240632320,-293.998,0.00011507,2]
[354101968,1740240632331,-308.0963464,0.00011507,2]
[354101970,1740240632342,-21.77941681,0.00011507,2]
[354101972,1740240632352,-155.26,0.00011544,2]
[354101974,1740240632361,-115.09858315,0.0001155,2]
[354101976,1740240632373,-34.90141685,0.0001155,2]
[354101978,1740240632382,-190.0,0.00011553,3]
[354101980,1740240632392,-38.86858315,0.00011585,2]
[354101982,1740240632403,-461.13141685,0.00011585,2]
[354101984,1740240632412,-500.0,0.00011585,2]
[354101986,1740240632422,-68.16557078,0.00011592,2]
[354102006,1740240632599,-87.09442922,0.00011592,2]
[354102008,1740240632609,-155.26,0.0001164,2]
[354102010,1740240632619,-155.26,0.00011687,2]
[354102012,1740240632628,-155.26,0.00011735,2]
[354102014,1740240632637,-155.26,0.00011783,2]
[354102016,1740240632648,-155.26,0.00011831,2]
[354102018,1740240632657,-155.26,0.00011878,2]
[354102020,1740240632666,-150.0,0.0001191,2]
[354102021,1740240632676,-150.0,0.0001191,2]
[354102022,1740240632685,-150.0,0.0001191,2]
[354102023,1740240632694,-150.0,0.0001191,2]
[354102024,1740240632704,-155.26,0.00011926,2]
[354102025,1740240632714,-155.26,0.00011974,2]
[354102026,1740240632724,-600.0,0.00012,2]
[354102027,1740240632733,-390.42,0.00012019,2]
[354102028,1740240632742,-155.26,0.00012021,2]
[354102029,1740240632751,-150.0,0.0001213,2]
[354102030,1740240632761,-1500.0,0.00012162,2]
[354102031,1740240632770,-190.0,0.00012249,3]
[354102032,1740240632780,-1000.0,0.00012328,2]
[354102034,1740240632789,-150.0,0.00012351,2]
[354102035,1740240632799,-151.299724,0.00012377,2]
[354102037,1740240632808,-151.299725,0.00012377,2]
[354102039,1740240632822,-153.85215,0.00012377,2]
[354102041,1740240632831,-150.0,0.00012571,2]
[354102043,1740240632841,-150.0,0.00012571,2]
[354102045,1740240632851,-150.0,0.00012571,2]
[354102047,1740240632860,-400.0,0.000126,4]
[354102049,1740240632869,-1000.0,0.00012602,2]
[354102051,1740240632878,-1300.0,0.00012658,4]
[354102053,1740240632888,-800.0,0.000127,4]
[354102055,1740240632897,-288.47,0.0001272,2]
[354102057,1740240632906,-150.0,0.00012727,2]
[354102059,1740240632915,-150.0,0.00012732,2]
[354102061,1740240632925,-241.6112884,0.00012739,2]
[354102063,1740240632934,-150.0,0.00012745,2]
[354102065,1740240632943,-1000.0,0.00012748,2]
[354102067,1740240632953,-150.0,0.00012764,2]
[354102069,1740240632962,-150.0,0.00012784,2]
[354102071,1740240632972,-150.0,0.00012792,2]
[354102073,1740240632981,-491.4863,0.00012797,2]
[354102075,1740240632992,-266.8526,0.00012797,2]
[354102077,1740240633004,-31057.1881,0.00012797,2]
[354102078,1740240633013,-3840.12615525,0.000128,2]
[354102080,1740240633023,-1200.0,0.000128,4]
[354102082,1740240633033,-416.98492638,0.00012834,2]
[354102083,1740240633042,-498.07,0.00012835,2]
[354102084,1740240633053,-5492.7132202,0.00012842,2]
[354102085,1740240633063,-1000.0,0.00012876,2]
[354102086,1740240633073,-289.551,0.00012877,2]
[354102087,1740240633083,-505.14,0.00012877,2]
[354102088,1740240633092,-4040.991,0.00012878,2]
[354102089,1740240633102,-150.0,0.0001288,2]
[354102090,1740240633111,-1000.0,0.0001288,2]
[354102091,1740240633121,-852.8409,0.00012896,2]
[354102092,1740240633131,-9563.4348037,0.00012896,2]
[354102093,1740240633141,-169.28325998,0.00012896,2]
[354102094,1740240633151,-534.5011,0.00012897,2]
[354102095,1740240633160,-637.1,0.00012897,2]
[354102096,1740240633170,-992.8453,0.00012897,2]
[354102097,1740240633179,-9067.0238,0.00012897,2]
[354102098,1740240633364,-1232.5884,0.00012897,2]
[354102099,1740240633378,-186.78236071,0.00012897,2]
[354102100,1740240633388,-4283.2447,0.00012897,2]
[354102101,1740240633397,-314.83852421,0.00012897,2]
[354102102,1740240633412,-340.35913438,0.00012899,2]
[354102103,1740240633422,-286.51773933,0.000129,2]
[354102104,1740240633432,-2738.17365625,0.000129,2]
[354102105,1740240633656,-683.75630087,0.000129,2]
[354102106,1740240633668,-1559.46701469,0.000129,2]
[354102107,1740240633699,-1736.92088886,0.000129,2]
[354102108,1740240633710,-650.77216513,0.000129,2]
[354102109,1740240633722,-547.61091002,0.000129,2]
[354102110,1740240633733,-712.02367317,0.000129,2]
[354102111,1740240633751,-1146.33246424,0.000129,2]
[354102112,1740240633762,-1460.58312677,0.000129,2]
[354102113,1740240633772,-348.57787744,0.000129,2]
[354102114,1740240633781,-5967.05705668,0.000129,2]
[354102115,1740240633792,-1997.21734795,0.000129,2]
[354102121,1740240637911,-2500.0,0.00012895,2]
[354102122,1740240637921,-45874.98127204,0.000129,2]
[354102123,1740240637930,-355.50826396,0.000129,2]
[354102124,1740240637940,-1600.0,0.000129,4]
[354102125,1740240637949,-204.32484753,0.000129,2]
[354102126,1740240637959,-6542.65945362,0.00012904,2]
[354102127,1740240637968,-42326.87506292,0.00012905,2]
[354102128,1740240637987,-734.27132458,0.00012905,2]
[354102129,1740240637999,-13709.88418126,0.00012905,2]
[354102130,1740240638008,-361.67640545,0.00012905,2]
[354102131,1740240638017,-482.23520727,0.00012906,2]
[354102132,1740240638027,-21307.61504651,0.00012909,2]
[354102133,1740240638036,-34603.03623506,0.00012911,2]
[354102134,1740240638048,-35120.89429369,0.00012911,2]
[354102135,1740240638057,-286.51773933,0.00012911,2]
[354102136,1740240638066,-6153.23626564,0.00012916,2]
[354102137,1740240638075,-69723.93052875,0.00012916,2]
[354102138,1740240638084,-150.0,0.00012918,2]
[354102139,1740240638093,-21307.61504651,0.00012918,2]
[354102140,1740240638102,-6153.23626564,0.00012919,2]
[354102141,1740240638110,-340.35913438,0.00012927,2]
[354102142,1740240638119,-23213.02886091,0.00012928,2]
[354102143,1740240638128,-21307.61504651,0.00012928,2]
[354102144,1740240638137,-361.67640545,0.00012932,2]
[354102145,1740240638150,-68.90147005,0.00012937,2]
[354102146,1740240638168,-268.6857184,0.00012937,2]
[354102147,1740240638177,-3614.4692816,0.00012943,2]
[354102149,1740240638188,-4676.235,0.00012943,2]
[354102194,1740240640053,-534.90845982,0.0001181,2]
[354102196,1740240640064,-63.58559715,0.0001181,2]
[354102198,1740240640073,-259.51889887,0.00012943,2]
[354102200,1740240640084,-411.26198841,0.00012943,2]
[354102202,1740240640095,-329.0207687,0.00012943,2]
[354102205,1740240640106,-426.73155788,0.00012943,2]
[354102208,1740240640131,-3185.0,0.00012943,2]
[354102218,1740240640216,-666.66794192,0.00012943,2]
[354102275,1740240642890,-799.8443,0.00012797,2]
[354102276,1740240642900,-49330.86038253,0.00012943,2]
[354102277,1740240642912,-4815.46509018,0.00012943,2]
[354102278,1740240642922,-18146.62529634,0.00012943,2]
[354102279,1740240642932,-1806.49803386,0.00012943,2]
[354102280,1740240642950,-464.504,0.00012943,2]
[354102281,1740240642961,-294.14994472,0.00012943,2]
[354102282,1740240643165,-307.28786812,0.0001181,2]
[354102306,1740240645924,-196.60213188,0.0001181,2]
[354102307,1740240645934,-49012.15325383,0.00012943,2]
[354102308,1740240645943,-67715.23091009,0.00012944,2]
[354102309,1740240645952,-361.67640545,0.00012945,2]
[354102310,1740240645960,-190.0,0.00012946,3]
[354102311,1740240645970,-6153.23626564,0.00012948,2]
[354102312,1740240645979,-337.58718845,0.00012949,2]
[354102313,1740240645989,-337.58718845,0.00012951,2]
[354102314,1740240645999,-23213.02886091,0.00012951,2]
[354102315,1740240646008,-200.0,0.00012952,2]
[354102316,1740240646018,-482.23520727,0.00012952,2]
[354102317,1740240646027,-340.35913438,0.00012953,2]
[354102318,1740240646037,-286.51773933,0.00012953,2]
[354102319,1740240646046,-15782.53899896,0.00012956,2]
[354102320,1740240646058,-1354.66576189,0.00012956,2]
[354102321,1740240646069,-497.75206322,0.00012956,2]
[354102322,1740240646080,-39136.07374469,0.00012956,2]
[354102323,1740240646090,-23213.02886091,0.00012956,2]
[354102324,1740240646099,-337.58718845,0.00012958,2]
[354102325,1740240646108,-482.23520727,0.0001296,2]
[354102326,1740240646117,-6542.65945362,0.00012963,2]
[354102327,1740240646126,-730.5016605,0.00012963,2]
[354102328,1740240646137,-360.08234564,0.00012963,2]
[354102329,1740240646149,-264.208,0.00012963,2]
[354102330,1740240646161,-462.44976162,0.00012963,2]
[354102331,1740240646185,-559.18729511,0.00012963,2]
[354102332,1740240646213,-376.87925389,0.00012963,2]
[354102333,1740240646224,-420.4240141,0.00012963,2]
[354102334,1740240646243,-1006.23121975,0.00012963,2]
[354102343,1740240664597,503.8197294,0.00012996,7]
[354102345,1740241139756,375.9,9.946e-05,2]
[354102346,1740241508713,46037.27,0.0001,2]
[354102347,1740241508742,50000.0,0.0001,2]
[354102348,1740241508772,842017.9452119,0.0001,2]
[354102349,1740241508801,558162.01312778,0.0001,2]
[354102350,1740241566454,152.0,0.0001,3]
[354102356,1740241811910,156.0,0.0001,3]
[354102367,1740241832101,-5551.0,0.000103,5]
[354102368,1740241832111,-156.0,0.00010667,3]
[354102369,1740241832121,-157.968264,0.00010958,2]
[354102370,1740241832131,-157.968264,0.00011041,2]
[354102371,1740241832141,-157.968264,0.00011205,2]
[354102372,1740241832150,-157.968264,0.00011287,2]
[354102373,1740241832160,-156.0,0.00011333,3]
[354102374,1740241832169,-103.09939759,0.00011369,2]
[354102375,1740241832181,-54.86886641,0.00011369,2]
[354102376,1740241832191,-236.12,0.00011531,2]
[354102377,1740241832202,-256.01,0.0001155,2]
[354102378,1740241832211,-177.00113359,0.00011585,2]
[354102379,1740241832223,-322.99886641,0.00011585,2]
[354102380,1740241832232,-465.58367623,0.00011585,2]
[354102381,1740241832243,-34.41632377,0.00011585,2]
[354102382,1740241832253,-300.09114885,0.00011596,2]
[354102383,1740241832285,-199.90885115,0.00011596,2]
[354102384,1740241832294,-1000.0,0.0001166,2]
[354102385,1740241832303,-150.99,0.0001166,2]
[354102386,1740241832313,-176.1,0.00011759,2]
[354102387,1740241832322,-890.34,0.00011815,2]
[354102388,1740241832331,-161.93,0.00011828,2]
[354102389,1740241832341,-150.0,0.0001191,2]
[354102390,1740241832350,-150.0,0.0001191,2]
[354102391,1740241832359,-150.0,0.0001191,2]
[354102392,1740241832368,-200.0,0.00011939,2]
[354102393,1740241832378,-168.05,0.00011943,2]
[354102394,1740241832389,-1500.0,0.00011961,2]
[354102395,1740241832400,-156.0,0.00012,3]
[354102396,1740241832410,-375.9,0.00012209,2]
[354102397,1740241832419,-1000.0,0.00012328,2]
[354102398,1740241832429,-150.0,0.00012571,2]
[354102399,1740241832438,-1000.0,0.00012602,2]
[354102400,1740241832448,-775.89,0.00012639,2]
[354102401,1740241832457,-440.17,0.00012639,2]
[354102402,1740241832467,-156.0,0.00012667,3]
[354102403,1740241832476,-432.37606579,0.00012734,2]
[354102404,1740241832486,-535.1661906,0.00012739,2]
[354102405,1740241832495,-150.0,0.00012739,2]
[354102406,1740241832505,-150.0,0.00012739,2]
[354102407,1740241832514,-588.96084728,0.00012796,2]
[354102408,1740241832524,-3456.11353968,0.000128,2]
[354102409,1740241832533,-2147.04769,0.0001283,2]
[354102411,1740241832542,-1000.0,0.00012876,2]
[354102413,1740241832551,-9145.15937005,0.0001289,2]
[354102415,1740241832560,-169.28325998,0.0001289,2]
[354102417,1740241832570,-4039.4359,0.00012895,2]
[354102419,1740241832579,-3695.31936071,0.00012895,2]
[354102420,1740241832626,-1238.0,0.00012895,2]
[354102421,1740241832638,-478.31588386,0.00012895,2]
[354102423,1740241832656,-305.98,0.00012895,2]
[354102426,1740241832668,-19579.9823986,0.00012895,2]
[354102428,1740241832690,-22357.43425683,0.00012895,2]
[354102431,1740241832704,-1000.0,0.00012896,2]
[354102432,1740241832712,-3232.793,0.00012899,2]
[354102433,1740241832722,-25388.50880883,0.00012899,2]
[354102434,1740241832736,-607.75,0.00012899,2]
[354102506,1740241838107,-403.3,0.00012899,2]
[354102507,1740241838161,-1196.73651874,0.00012899,2]
[354102508,1740241838269,-2438.88374397,0.00012899,2]
[354102509,1740241838279,-231.641,0.000129,2]
[354102510,1740241838288,-278.86230196,0.000129,2]
[354102511,1740241838296,-8918.14517301,0.000129,2]
[354102532,1740241840227,-285.81595013,0.000129,2]
[354102533,1740241840332,-7238.12511026,0.000129,2]
[354102534,1740241840344,-55783.18936052,0.000129,2]
[354102535,1740241840353,-304.72136916,0.000129,2]
[354102536,1740241840363,-204.32484748,0.000129,2]
[354102537,1740241840372,-150.0,0.00012905,2]
[354102538,1740241840383,-17127.6514959,0.00012963,2]
[354102539,1740241840393,-3962.11292694,0.00012966,2]
[354102540,1740241840409,-1388.83144935,0.00012966,2]
[354102541,1740241840551,-837.6,0.00012966,2]
[354102542,1740241840562,-694.64299998,0.00012966,2]
[354102543,1740241840574,-16.0138139,0.00012966,2]
[354102544,1740241840583,-332.81387781,0.00012966,2]
[354102579,1740241846386,-2512.42992,0.00012966,2]
[354102589,1740242181062,412.68,8.767e-05,2]
[354102592,1740242986988,15708.23170819,0.0002,120]
[354102597,1740243032345,-338.31,0.00010054,2]
[354102598,1740243032354,-157.968264,0.00010958,2]
[354102599,1740243032363,-157.968264,0.00011123,2]
[354102600,1740243032372,-157.968264,0.00011287,2]
[354102601,1740243032382,-582.88074301,0.00011527,2]
[354102602,1740243032397,-523.7351175,0.00011527,2]
[354102603,1740243032408,-1251.80413949,0.00011527,2]
[354102604,1740243032417,-500.0,0.00011585,2]
[354102605,1740243032426,-532.05383683,0.00011585,2]
[354102606,1740243032435,-150.00000001,0.00011737,2]
[354102607,1740243032444,-204.60528375,0.0001176,2]
[354102608,1740243032462,-795.39471625,0.0001176,2]
[354102609,1740243032471,-262.89,0.0001188,2]
[354102610,1740243032481,-588.96084725,0.00011973,2]
[354102611,1740243032490,-1424.23760267,0.00012071,2]
[354102612,1740243032502,-1097.72946846,0.00012071,2]
[354102613,1740243032519,-519.34268407,0.00012071,2]
[354102614,1740243032528,-150.0,0.00012072,2]
[354102615,1740243032538,-300.0,0.00012072,2]
[354102616,1740243032546,-916.33756463,0.00012073,2]
[354102617,1740243032615,-1204.75909849,0.00012073,2]
[354102618,1740243032625,-4844.38900129,0.00012073,2]
[354102619,1740243032637,-5226.49427502,0.00012073,2]
[354102620,1740243032648,-2257.03968916,0.00012073,2]
[354102621,1740243032683,-3861.16061818,0.00012073,2]
[354102622,1740243032695,-38395.6728206,0.00012073,2]
[354102623,1740243032706,-295.49189213,0.00012073,2]
[354102624,1740243032723,-19554.6,0.00012073,2]
[354102625,1740243032734,-540.0,0.00012073,2]
[354102626,1740243032744,-535.47,0.00012073,2]
[354102650,1740243038351,-2254.88152453,0.00012073,2]
[354102651,1740243038362,-12945.25124714,0.00012073,2]
[354102652,1740243038405,-1990.14,0.00012073,2]
[354102653,1740243038513,-14969.22226883,0.00012073,2]
[354102654,1740243038522,-208.65592139,0.00012073,2]
[354102655,1740243038532,-338.31,0.00012318,2]
[354102656,1740243038542,-826.49,0.00012328,2]
[354102657,1740243038551,-1735.5,0.00012639,2]
[354102658,1740243038560,-629.0,0.00012639,2]
[354102659,1740243038570,-226.308615,0.00012739,2]
[354102660,1740243038580,-3110.50218573,0.00012878,2]
[354102661,1740243038589,-7500.0,0.00012879,2]
[354102662,1740243038599,-185.313,0.0001288,2]
[354102663,1740243038609,-2586.234,0.00012896,2]
[354102664,1740243038618,-223.08984156,0.00012897,2]
[354102666,1740243038627,-261.18974496,0.00012897,2]
[354102668,1740243038635,-151.16697054,0.000129,2]
[354102670,1740243038644,-204.32484748,0.000129,2]
[354102672,1740243038654,-163.25763348,0.0001296,5]
[354102674,1740243038663,-1789.20641,0.00012966,2]
[354102676,1740243038672,-156.0,0.00012966,3]
[354102678,1740243038682,-3697.41565581,0.00012966,2]
[354102680,1740243038692,-500.0,0.00012973,2]
[354102682,1740243038701,-6542.65945362,0.00012973,2]
[354102683,1740243038710,-6153.23626564,0.00012974,2]
[354102685,1740243038719,-23213.02886091,0.00012975,2]
[354102687,1740243038728,-500.0,0.00012977,2]
[354102689,1740243038737,-500.0,0.00012977,2]
[354102691,1740243038747,-500.0,0.00012977,2]
[354102693,1740243038756,-500.0,0.00012977,2]
[354102695,1740243038766,-500.0,0.00012977,2]
[354102697,1740243038775,-500.0,0.00012977,2]
[354102699,1740243038785,-500.0,0.00012977,2]
[354102700,1740243038795,-500.0,0.00012977,2]
[354102701,1740243038804,-500.0,0.00012977,2]
[354102702,1740243038813,-500.0,0.00012977,2]
[354102703,1740243038823,-500.0,0.00012977,2]
[354102704,1740243038833,-500.0,0.00012977,2]
[354102705,1740243038842,-500.0,0.00012977,2]
[354102706,1740243038851,-500.0,0.00012977,2]
[354102707,1740243038860,-500.0,0.00012977,2]
[354102708,1740243038869,-500.0,0.00012977,2]
[354102709,1740243038879,-500.0,0.00012977,2]
[354102710,1740243038889,-500.0,0.00012977,2]
[354102711,1740243038899,-500.0,0.00012977,2]
[354102712,1740243038909,-500.0,0.00012977,2]
[354102713,1740243038918,-500.0,0.00012977,2]
[354102714,1740243038928,-500.0,0.00012977,2]
[354102715,1740243038937,-500.0,0.00012977,2]
[354102716,1740243038948,-500.0,0.00012977,2]
[354102717,1740243038957,-500.0,0.00012977,2]
[354102718,1740243039160,-500.0,0.00012977,2]
[354102719,1740243039172,-500.0,0.00012977,2]
[354102720,1740243039182,-500.0,0.00012977,2]
[354102721,1740243039192,-500.0,0.00012977,2]
[354102722,1740243039201,-500.0,0.00012977,2]
[354102723,1740243039211,-500.0,0.00012977,2]
[354102724,1740243039220,-500.0,0.00012977,2]
[354102725,1740243039230,-500.0,0.00012977,2]
[354102726,1740243039239,-500.0,0.00012977,2]
[354102727,1740243039249,-500.0,0.00012977,2]
[354102728,1740243039259,-500.0,0.00012977,2]
[354102729,1740243039268,-500.0,0.00012977,2]
[354102730,1740243039278,-500.0,0.00012977,2]
[354102731,1740243039287,-500.0,0.00012977,2]
[354102732,1740243039297,-500.0,0.00012977,2]
[354102733,1740243039307,-500.0,0.00012977,2]
[354102734,1740243039317,-500.0,0.00012977,2]
[354102735,1740243039326,-500.0,0.00012977,2]
[354102736,1740243039336,-500.0,0.00012977,2]
[354102737,1740243039346,-500.0,0.00012977,2]
[354102738,1740243039356,-500.0,0.00012977,2]
[354102739,1740243039365,-500.0,0.00012977,2]
[354102740,1740243039374,-500.0,0.00012977,2]
[354102741,1740243039384,-500.0,0.00012977,2]
[354102742,1740243039393,-68197.33625408,0.00012978,3]
[354102743,1740243039403,-500.0,0.00012978,2]
[354102744,1740243039413,-507.98030279,0.00012978,2]
[354102745,1740243039422,-266.05,0.00012978,2]
[354102746,1740243039431,-562.29,0.00012978,2]
[354102747,1740243039440,-500.0,0.00012978,2]
[354102748,1740243039450,-446.45,0.00012978,2]
[354102749,1740243039459,-500.0,0.00012978,2]
[354102750,1740243039468,-257.47,0.00012978,2]
[354102751,1740243039478,-268.24,0.00012978,2]
[354102752,1740243039487,-184.88,0.00012978,2]
[354102753,1740243039496,-606.19,0.00012978,2]
[354102754,1740243039506,-254.27,0.00012978,2]
[354102755,1740243039515,-500.0,0.00012978,2]
[354102756,1740243039524,-500.0,0.00012978,2]
[354102757,1740243039533,-500.0,0.00012978,2]
[354102758,1740243039542,-500.0,0.00012978,2]
[354102759,1740243039551,-500.0,0.00012978,2]
[354102760,1740243039561,-500.0,0.00012978,2]
[354102761,1740243039570,-500.0,0.00012978,2]
[354102762,1740243039579,-500.0,0.00012978,2]
[354102763,1740243039588,-500.0,0.00012978,2]
[354102764,1740243039598,-500.0,0.00012978,2]
[354102765,1740243039607,-500.0,0.00012978,2]
[354102766,1740243039616,-500.0,0.00012978,2]
[354102767,1740243039625,-500.0,0.00012978,2]
[354102768,1740243039634,-500.0,0.00012978,2]
[354102769,1740243039644,-500.0,0.00012978,2]
[354102770,1740243039654,-500.0,0.00012978,2]
[354102771,1740243039663,-500.0,0.00012978,2]
[354102772,1740243039672,-500.0,0.00012978,2]
[354102773,1740243039681,-500.0,0.00012978,2]
[354102774,1740243039690,-500.0,0.00012978,2]